Cogmind - Beta 16 --- EXPLORER MODE // 2025.12.09 @ 16:49:50 Player: K.K.Y. Result: Destroyed by H-66 Slayer with Gauss Rifle Performance ------------- Evolutions (4) 2000 Regions Visited (6) 1200 Robots Destroyed (48) 240 Value Destroyed (1692) 1692 Prototype IDs (5) 100 Alien Tech Used (0) 0 Bonus (103) 103 TOTAL SCORE: 5335 Bonus ------- Follower Combat Kills 127 Friendly Fire -24 Cogmind --------- Core Integrity 0/850 Matter 175/300 Energy 190/220 System Corruption 4% Temperature Cool (51) Movement Walking (116) Location -6/Factory Parts ------- > --- POWER (2) -------- Light Fission Core Light Fission Core > --- PROPULSION (4) --- Flexi-carbon Leg Flexi-carbon Leg Multireflex Exoskeleton > --- UTILITY (8) ------ Enhanced Optical Array Advanced Signal Interpreter Improved Target Analyzer Improved Target Analyzer Core Analyzer Phase Shifter Improved Hacking Suite > --- WEAPON (2) ------- Lightning Gun Gauss Rifle (fused) > --- INVENTORY (5) ---- Improved Deuterium Engine Flexi-carbon Leg Huge Storage Unit Peak State ------------ > --- POWER ------------ Light Fission Core Light Fission Core > --- PROPULSION ------- Flexi-carbon Leg Flexi-carbon Leg Multireflex Exoskeleton > --- UTILITY ---------- Enhanced Optical Array Advanced Signal Interpreter Improved Target Analyzer Improved Target Analyzer Core Analyzer Phase Shifter Improved Hacking Suite System Shield > --- WEAPON ----------- Lightning Gun Gauss Rifle > --- INVENTORY -------- Improved Deuterium Engine Flexi-carbon Leg Huge Storage Unit [Rating: 78] Favorites ----------- Power Deuterium Engine Engine Deuterium Engine Power Core Light Fission Core Propulsion Improved Hover Unit Leg Flexi-carbon Leg Wheel Wheel Hover Unit Improved Hover Unit Flight Unit VTOL Module Utility High-capacity Storage Unit Device V3-11A's Pendant Storage High-capacity Storage Unit Processor Advanced Visual Processing Unit Hackware Makeshift System Shield Weapon Light EM Pulse Cannon Energy Gun Medium Laser Energy Cannon Light EM Pulse Cannon Ballistic Gun Light Assault Rifle Ballistic Cannon Assault Cannon Special Weapon Mining Laser Slashing Weapon Scythe Special Melee Weapon Improved Datajack Build | -11 -10 -10 -10 -8 -8 -6 ------- Run | Yrd Mat Min Sub Rec Scr Fac Slots Evolved 9 | . 1 . . . . 8 Power 1 | . . . . . . 1 Propulsion 2 | . 1 . . . . 1 Utility 6 | . . . . . . 6 Weapon . | . . . . . . . Parts Attached 79 | 7 17 1 2 3 3 46 Power 8 | 1 1 1 . 1 . 4 Engine 5 | 1 1 1 . 1 . 1 Core 3 | . . . . . . 3 Reactor . | . . . . . . . Propulsion 21 | 2 6 . . . . 13 Treads . | . . . . . . . Leg 4 | . . . . . . 4 Wheel 3 | 2 1 . . . . . Hover 4 | . 4 . . . . . Flight 10 | . 1 . . . . 9 Utility 26 | 2 4 . 1 . 1 18 Device 12 | 2 1 . 1 . 1 7 Storage 3 | . 3 . . . . . Processor 8 | . . . . . . 8 Hackware 3 | . . . . . . 3 Protection . | . . . . . . . Artifact . | . . . . . . . Weapon 24 | 2 6 . 1 2 2 11 Energy Gun 3 | . 1 . . . . 2 Energy Cannon 8 | . 5 . . . 1 2 Ballistic Gun 5 | 2 . . . . . 3 Ballistic Cannon 2 | . . . . . . 2 Launcher . | . . . . . . . Special Weapon 3 | . . . 1 . 1 1 Impact Weapon . | . . . . . . . Slashing Weapon 2 | . . . . 2 . . Piercing Weapon . | . . . . . . . Special Melee Weapon 1 | . . . . . . 1 Unidentified Prototypes 3 | . . . 1 . . 2 Parts Lost 19 | . . . 1 1 . 17 Power . | . . . . . . . Propulsion 9 | . . . . 1 . 8 Utility 7 | . . . . . . 7 Weapon 3 | . . . 1 . . 2 Highest Loss Streak 8 | . . . 1 1 . 8 To Critical Strikes . | . . . . . . . Average Backups 11 | 2 6 8 9 13 19 7 Power . | . . . . 1 1 . Propulsion . | . . 1 1 1 . . Utility 6 | . 2 4 5 7 11 2 Weapon 3 | 1 2 3 3 3 5 3 Tool/Special . | . . . . . . . Unused Backups 24 | . . . 2 1 6 15 Power 3 | . . . . . 2 1 Propulsion . | . . . . . . . Utility 10 | . . . . . 2 8 Weapon 11 | . . . 2 1 2 6 Tool/Special . | . . . . . . . Average Slot Usage (%) 92 | . 94 100 97 91 96 73 Engine 10 | . 12 12 12 12 12 2 Wheel 1 | . 13 . . . . . Hover 27 | . 21 37 37 29 34 4 Flight 1 | . . . . . . 10 Device 11 | . 12 12 12 12 11 11 Storage 10 | . 11 12 12 12 12 1 Processor 2 | . . . . . . 18 Hackware 1 | . . . . . . 12 Energy Cannon 12 | . 17 25 12 12 12 2 Special Weapon 3 | . . . 9 . 5 . Slashing Weapon 4 | . . . . 11 6 . Peak Build Rating 78 | 7 15 16 16 21 29 78 Average Rating 22 | 4 11 15 15 20 26 48 On Entrance 14 | . 7 15 16 15 21 29 Avg Prop Armor Cover (%) 9 | . 11 . . . . 6 Naked Turns . | . . . . . . . Heaviest Build 69 | 9 29 23 23 56 65 69 Greatest Support 76 | 20 30 27 27 21 21 76 Greatest Overweight (x) 9 | 2 9 . . 3 4 5 Average Overweight (x) . | . . . . 1 3 . Largest Inventory Capacity 20 | 5 20 10 10 20 20 20 Average Capacity 13 | 5 11 10 10 16 20 8 Most Carried 20 | 5 10 9 10 19 20 19 Average Carried 11 | 2 6 8 9 13 19 7 Final Capacity 20 | 5 10 10 10 20 20 5 Final Carried 20 | 5 8 9 10 19 20 3 Class Distribution -------------------- 92% | Hacker-Mutant 3% | Hacker-Sprinter 3% | Hacker-Scout Dominant Class ---------------- Hacker-Mutant | -10/Materials Hacker-Mutant | -10/Mines Hacker-Mutant | -10/Subcaves Hacker-Mutant | -8/Recycling Hacker-Mutant | -8/Scraptown Hacker-Mutant | -6/Factory Resources | -11 -10 -10 -10 -8 -8 -6 ----------- Run | Yrd Mat Min Sub Rec Scr Fac Matter Collected 1319 | 290 241 8 76 56 56 592 Remotely . | . . . . . . . Salvage Created 2010 | 194 592 98 89 55 . 982 Parts 102 | 16 24 6 2 2 . 52 Haulers Intercepted 2 | . 2 . . . . . Recyclers Shooed . | . . . . . . . Parts Field Recycled . | . . . . . . . Retrieved Matter . | . . . . . . . Parts Self-Destructed . | . . . . . . . Prevented . | . . . . . . . Parts Restored . | . . . . . . . Kills | -11 -10 -10 -10 -8 -8 -6 ------- Run | Yrd Mat Min Sub Rec Scr Fac Combat Hostiles Destroyed 32 | . 9 2 1 1 . 19 Guns 12 | . 3 . . . . 9 Cannons 13 | . 3 2 1 . . 7 AOE 5 | . 1 . . 1 . 3 Classes Destroyed 12 | 2 3 . 2 1 . 4 Worker 2 | . . . . . . 2 Tunneler 5 | 5 . . . . . . Hauler 2 | . 2 . . . . . Recycler 2 | 1 . . . . . 1 Turret 1 | . . . 1 . . . Watcher 4 | . 3 . . . . 1 Swarmer 6 | . . . . . . 6 Grunt 17 | . 9 2 . . . 6 Sentry 3 | . . . . 1 . 2 Hunter 3 | . . . . . . 3 Programmer 2 | . . . . . . 2 Subdweller 1 | . . . 1 . . . Best Kill Streak 4 | 3 4 2 1 1 . 4 Combat Bots Only 4 | . 4 2 1 1 . 4 Max Kills in Single Turn 3 | 1 2 1 1 1 . 3 Gunslinging . | . . . . . . . Exploded 2 | . 1 . . 1 . 2 Melee . | . . . . . . . Uniques/NPCs Destroyed . | . . . . . . . Combat | -11 -10 -10 -10 -8 -8 -6 -------- Run | Yrd Mat Min Sub Rec Scr Fac Hostile Shots Fired 681 | . 84 5 61 8 . 523 Missed 257 | . 28 3 28 . . 198 Hits 424 | . 56 2 33 8 . 325 Melee 1 | . . . . . . 1 Projectile 423 | . 56 2 33 8 . 324 Critical Strikes 9 | . 2 . . . . 7 Damage Taken 3275 | . 468 12 174 104 . 2517 Core 1067 | . 139 . 39 37 . 852 Absorbed by Shields 82 | . . . . . . 82 Ignored by Resistances 2103 | . 290 8 120 64 . 1621 Regen/Repaired (Parts) 71 | . 71 . . . . . Core Remaining (%) 57 | 100 . . . . 14 . Volleys Fired 138 | 10 32 2 19 2 . 73 Largest 2 | 2 2 2 2 1 . 2 Hottest 156 | 40 112 112 156 56 . 140 Shots Fired 189 | 20 46 5 26 3 . 89 Gun 90 | 20 19 . . . . 51 Cannon 95 | . 27 5 22 3 . 38 Launcher . | . . . . . . . Special 4 | . . . 4 . . . Kinetic 78 | 20 . . . . . 58 Thermal 45 | . 20 . 4 . . 21 Explosive . | . . . . . . . Electromagnetic 66 | . 26 5 22 3 . 10 Robot Hit Streak 36 | 13 15 16 25 6 . 36 Robot Miss Streak 3 | 1 1 . 1 . . 3 Penetration Max 1 | . . . . . . 1 Secondary Targets . | . . . . . . . Shots Hit Robots 159 | 16 37 4 12 6 . 84 Core Hits 86 | 12 17 3 6 1 . 47 Critical Kills . | . . . . . . . Critical Parts Destroyed . | . . . . . . . Critical Strikes 6 | . 5 . . . . 1 Burn 4 | . 4 . . . . . Blast 1 | . . . . . . 1 Corrupt 1 | . 1 . . . . . Melee Attacks 7 | . . . . 3 . 4 Impact . | . . . . . . . Slashing 3 | . . . . 3 . . Piercing . | . . . . . . . Sneak Attacks 5 | . . . . 1 . 4 Combat Hostiles . | . . . . . . . Follow-up Attacks . | . . . . . . . Damage Inflicted 4178 | 124 812 94 227 239 . 2682 Guns 1417 | 124 237 . . . . 1056 Cannons 1898 | . 501 94 227 58 . 1018 Explosions 735 | . 74 . . 56 . 605 Melee 125 | . . . . 125 . . Ramming 3 | . . . . . . 3 Kinetic 1356 | 124 . . . . . 1232 Thermal 1648 | . 311 . . 56 . 1281 Explosive . | . . . . . . . Electromagnetic 1046 | . 501 94 227 58 . 166 Impact . | . . . . . . . Slashing 125 | . . . . 125 . . Piercing . | . . . . . . . Highest Corruption 4 | . 2 2 2 2 . 4 Average Corruption 2 | . 1 2 2 2 . 2 Corruption Purged . | . . . . . . . Corruption Blocked . | . . . . . . . Effects 74 | . 13 9 20 21 . 11 Message Errors 20 | . 3 3 7 3 . 4 Matter Fused 18 | . 3 4 4 6 . 1 Heat Flow Errors 9 | . . 1 1 6 . 1 Energy Discharges 7 | . 3 . 2 1 . 1 Parts Rejected 1 | . . . . . . 1 Parts Fused 2 | . 1 . . . . 1 Data Loss (minor) 6 | . 2 . 2 2 . . Data Loss (major) 3 | . 1 . 1 1 . . Misfires 5 | . . 1 3 1 . . Alerts 3 | . . . . 1 . 2 Overload Shots . | . . . . . . . Overflow Damage 41 | . . . . 33 . 8 Projectiles 7 | . . . . . . 7 Explosions 1 | . . . . . . 1 Melee 33 | . . . . 33 . . Knockbacks 1 | . . . . . . 1 Impact . | . . . . . . . Kinetic 1 | . . . . . . 1 Secondary . | . . . . . . . Self-Inflicted Damage 111 | . . . . 29 . 82 Shots 3 | . . . . 1 . 2 Rammed . | . . . . . . . Targets Rammed 1 | . . . . . . 1 Kicked 1 | . . . . . . 1 Crushed . | . . . . . . . Highest Temperature 343 | . 343 176 151 197 . 282 Average Temperature 87 | . 93 58 38 84 . 95 Received Heat Transfer 1112 | . 450 12 150 36 . 464 Effects 4 | . 1 . . . . 3 Interference 3 | . . . . . . 3 Short Circuit 1 | . 1 . . . . . Siege Activations . | . . . . . . . Martial Activations . | . . . . . . . Shielding Activations . | . . . . . . . Robots Disrupted . | . . . . . . . Combat Hostiles . | . . . . . . . Robots Corrupted 1 | . 1 . . . . . Combat Hostiles 1 | . 1 . . . . . Parts Fried 4 | . 4 . . . . . Impact Corruptions . | . . . . . . . Robots Melted 1 | . 1 . . . . . Combat Hostiles 1 | . 1 . . . . . Parts Melted 7 | . 4 . 1 . . 2 Heat Transferred 2649 | . 1099 . . 50 . 1500 Parts Sabotaged 2 | . . . . . . 2 Parts Stolen . | . . . . . . . Parts Stripped . | . . . . . . . Power Chain Reactions 4 | . 1 . . 1 . 2 Alert | -11 -10 -10 -10 -8 -8 -6 ------- Run | Yrd Mat Min Sub Rec Scr Fac Maximum Alert Level . | . . . . . . . Low Security (%) 100 | 100 100 100 . 100 . 100 Level 1 . | . . . . . . . Level 2 . | . . . . . . . Level 3 . | . . . . . . . Level 4 . | . . . . . . . Level 5 . | . . . . . . . High Security . | . . . . . . . Max Security . | . . . . . . . Peak Influence 157 | 5 100 35 . 61 . 157 Initial 61 | . . . . 61 . . Average 20 | 1 11 2 . 2 . 67 Influence Increases 1857 | 30 311 50 410 94 . 962 Destroy 0b10 Robot/C 800 | . 180 40 120 80 . 380 Destroy 0b10 Robot/NC 75 | 30 25 . . . . 20 Destroy Leader 152 | . 50 10 . . . 92 Allied During Kill 9 | . . . 5 4 . . Successful Hack 64 | . 19 . . 2 . 43 Disable Machine 8 | . . . . . . 8 Anti-Garrison Action 150 | . . . . . . 150 Destroy Structure 44 | . 7 . . 8 . 29 Partial Spotted 75 | . . . . . . 75 Lose Combat Pursuer 480 | . 30 . 285 . . 165 Influence Decreases 1737 | 30 311 50 234 270 . 842 Entered New Map 115 | . . . . 115 . . Time Decay 1487 | 30 311 50 199 155 . 742 Lost Part 100 | . . . . . . 100 Lost Ally 35 | . . . 35 . . . Squads Dispatched 7 | . . . . . . 7 Investigation 1 | . . . . . . 1 Extermination 2 | . . . . . . 2 Reinforcement 3 | . . . . . . 3 Assault 1 | . . . . . . 1 Garrison . | . . . . . . . Intercept . | . . . . . . . Searches Triggered . | . . . . . . . Construction Impeded 2 | . . . . . . 2 Haulers Reinforced 1 | . . . . . . 1 Active Scanning Responses . | . . . . . . . Cargo Convoy Interrupts . | . . . . . . . Stealth | -11 -10 -10 -10 -8 -8 -6 --------- Run | Yrd Mat Min Sub Rec Scr Fac Distress Signals 5 | . 2 . . . . 3 Communications Jammed . | . . . . . . . Distress Signals . | . . . . . . . Times Spotted 88 | . 14 2 23 2 . 47 Peak Tracking Total 10 | . 5 2 6 2 . 10 Tactical Retreats 12 | . 1 . 4 . . 7 Traps | -11 -10 -10 -10 -8 -8 -6 ------- Run | Yrd Mat Min Sub Rec Scr Fac Traps Triggered 7 | . 5 . . . . 2 Indirectly . | . . . . . . . Trap Hack Attempts . | . . . . . . . Triggered . | . . . . . . . Disarmed . | . . . . . . . Reprogrammed . | . . . . . . . Reused . | . . . . . . . Traps Extracted . | . . . . . . . Installed 1 | . . . 1 . . . Triggered . | . . . . . . . Machines | -11 -10 -10 -10 -8 -8 -6 ---------- Run | Yrd Mat Min Sub Rec Scr Fac Machines Disabled 4 | . . . 1 . . 3 Max in Single Turn 2 | . . . . . . 2 Garrison Access 2 | . . . . . . 2 Machines Repaired . | . . . . . . . Machines Dismantled . | . . . . . . . Machines Sabotaged . | . . . . . . . Overloaded Fab Kills . | . . . . . . . Hacking | -11 -10 -10 -10 -8 -8 -6 --------- Run | Yrd Mat Min Sub Rec Scr Fac Machines Accessed 29 | . 8 . . 12 1 8 Terminals 15 | . 5 . . 6 . 4 Fabricators . | . . . . . . . Repair Stations 1 | . 1 . . . . . Recycling Units 10 | . 2 . . 6 . 2 Scanalyzers 1 | . . . . . . 1 Garrison Access 1 | . . . . . . 1 Total Hacks 76 | . 21 . . 26 9 20 Successful 57 | . 17 . . 19 9 12 Failed 19 | . 4 . . 7 . 8 Catastrophic 1 | . . . . . . 1 Database Lockouts . | . . . . . . . Manual 29 | . 8 . . 14 . 7 Terminals 37 | . 11 . . 12 . 14 Fabricators . | . . . . . . . Repair Stations 7 | . 7 . . . . . Recycling Units 20 | . 3 . . 14 . 3 Scanalyzers 2 | . . . . . . 2 Garrison Access 1 | . . . . . . 1 Terminal Hacks 18 | . 3 . . 2 9 4 Record 9 | . . . . . 9 . Part Schematic 5 | . . . . 2 . 3 Robot Analysis 3 | . 2 . . . . 1 Zone Layout 1 | . 1 . . . . . Fabricator Hacks . | . . . . . . . Repair Station Hacks 7 | . 7 . . . . . Scan Component 4 | . 4 . . . . . Repair 3 | . 3 . . . . . Recycling Unit Hacks 10 | . 2 . . 6 . 2 Retrieve Components 10 | . 2 . . 6 . 2 Scanalyzer 2 | . . . . . . 2 Retrieve Study 2 | . . . . . . 2 Garrison Access Hacks 1 | . . . . . . 1 Seal Access 1 | . . . . . . 1 Unauthorized Hacks 19 | . 5 . . 11 . 3 Terminals 14 | . 5 . . 6 . 3 Botnet 14 | . 5 . . 6 . 3 Fabricators . | . . . . . . . Repair Stations . | . . . . . . . Recycling Units 5 | . . . . 5 . . Reject 5 | . . . . 5 . . Scanalyzers . | . . . . . . . Garrison Access . | . . . . . . . Data Cores Recovered . | . . . . . . . Used . | . . . . . . . Hacking Detections 15 | . 4 . . 6 . 5 Full Trace Events 1 | . 1 . . . . . Feedback Events . | . . . . . . . Feedback Blocked . | . . . . . . . Robot Schematics Acquired . | . . . . . . . Robots Built . | . . . . . . . Authchips . | . . . . . . . Time . | . . . . . . . Total Robot Build Rating . | . . . . . . . Part Schematics Acquired 5 | . . . . 2 . 3 Parts Built . | . . . . . . . Authchips . | . . . . . . . Time . | . . . . . . . Total Part Build Rating . | . . . . . . . Part Studies Acquired 2 | . . . . . . 2 Parts Repaired 3 | . 3 . . . . . Time 96 | . 96 . . . . . Parts Recycled . | . . . . . . . Recycled Matter . | . . . . . . . Retrieved Matter . | . . . . . . . Retrieved Components 36 | . 10 . . 16 . 10 Parts Scanalyzed . | . . . . . . . Part Schematics Acquired . | . . . . . . . Parts Damaged . | . . . . . . . Bothacking | -11 -10 -10 -10 -8 -8 -6 ------------ Run | Yrd Mat Min Sub Rec Scr Fac Used RIF Installer . | . . . . . . . Robots Hacked 2 | . . . . . . 2 Non-combat 2 | . . . . . . 2 Combat . | . . . . . . . Robot Hacks Applied 3 | . . . . . . 3 no_distress 2 | . . . . . . 2 find_recycling 1 | . . . . . . 1 Relay Couplers Released 1 | . . . . . . 1 Machine Destruction 1 | . . . . . . 1 Fabnet Peak Effective % . | . . . . . . . Robots Rewired . | . . . . . . . Allies Hacked . | . . . . . . . Hacks Repelled . | . . . . . . . Allies | -11 -10 -10 -10 -8 -8 -6 -------- Run | Yrd Mat Min Sub Rec Scr Fac Total Allies 7 | . . 2 5 . . . Largest Group 4 | . . 2 4 3 3 1 Highest-Rated Group 85 | . . 47 85 66 66 19 Highest-Rated Ally 31 | . . 31 31 31 31 19 Total Orders . | . . . . . . . Ally Attacks 34 | . . . 28 5 . 1 Total Damage 523 | . . . 331 84 . 108 Kills 10 | . . . 6 3 . 1 Allies Corrupted . | . . . . . . . Allies Melted . | . . . . . . . Intel | -11 -10 -10 -10 -8 -8 -6 ------- Run | Yrd Mat Min Sub Rec Scr Fac Active Infowar (turns) 2249 | 168 1022 . . . . 1059 Optics 977 | . . . . . . 977 Sensors 1933 | 168 1022 . . . . 743 Seismic 123 | 84 39 . . . . . Machine Analysis 721 | . . . . . . 721 Robot Analysis Total 3 | . 2 . . . . 1 Derelict Logs Recovered 6 | . . 2 1 . 3 . Drone Launches . | . . . . . . . Drone Recoveries . | . . . . . . . Exploration | -11 -10 -10 -10 -8 -8 -6 ------------- Run | Yrd Mat Min Sub Rec Scr Fac Turns Passed 8333 | 191 1193 496 1564 1839 1850 1200 Spaces Moved 7311 | 154 928 666 2454 1028 752 1329 Core 109 | 78 2 . . . . 29 Treads . | . . . . . . . Legs 73 | . . . . . . 73 Wheels 491 | 76 415 . . . . . Hover 5552 | . 511 666 2454 1028 752 141 Flight 1086 | . . . . . . 1086 Fastest Speed 27 | 50 52 52 52 52 232 27 Average Speed 93 | 94 93 52 52 167 233 55 Slowest Speed 500 | 150 500 52 52 236 296 300 Overloaded Moves . | . . . . . . . Propulsion Burnouts . | . . . . . . . Robots Hopped 11 | . . . . . . 11 Potential Cave-ins . | . . . . . . . Cave-ins Triggered . | . . . . . . . Exploration Rate (%) 64 | 5 99 99 69 99 53 29 Regions Visited 6 Branch Regions 4 Pre-discovered Areas 1 | . . 1 . . . . Known Exits Taken 6 | 1 1 1 1 1 1 . Unknown Exits Taken . | . . . . . . . Scrap Searched 14 | . . . 9 . 5 . Spaces Dug . | . . . . . . . Terrain Destroyed 40 | . 6 . . 10 . 24 Melee . | . . . . . . . Projectile 1 | . . . . . . 1 AOE 39 | . 6 . . 10 . 23 Terrain Rammed . | . . . . . . . Walls Destroyed . | . . . . . . . Machines Disabled . | . . . . . . . Actions | -11 -10 -10 -10 -8 -8 -6 --------- Run | Yrd Mat Min Sub Rec Scr Fac Total 8604 | 182 1218 811 2713 1136 853 1691 Wait 920 | . 195 140 230 83 74 198 Move 7284 | 153 927 665 2453 1027 751 1308 Hop 10 | . . . . . . 10 Pick Up 76 | 12 17 2 4 12 12 17 Fast Attach 31 | . 4 . 1 1 2 23 Attach 49 | 7 15 . . . 1 26 Detach 21 | . 12 . . . . 9 Swap 12 | . 3 1 1 3 1 3 Drop 54 | . 13 1 4 5 12 19 Fire 138 | 10 32 2 19 2 . 73 Melee 7 | . . . . 3 . 4 Ram . | . . . . . . . Kick 1 | . . . . . . 1 Crush . | . . . . . . . Escape Stasis . | . . . . . . . Rewire . | . . . . . . . Trap 1 | . . . 1 . . . Miscellaneous . | . . . . . . . Route ------- -11/Scrapyard -10/Materials (discovered 4 exits: *Mat x3 / *Min) -10/Mines (discovered 4 exits: *Mat x2 / *Exi / *Sub) -10/Subcaves (discovered 3 exits: *Mat x2 / *Rec) -8/Recycling (discovered 2 exits: *Fac / *Scr) -8/Scraptown -6/Factory History --------- Turn | Location | Event 18 | -11/Scrapyard | Identified exit to Materials 18 | -11/Scrapyard | Discovered exit to Materials (range 16) 192 | -11/Scrapyard | Entered Materials 192 | -10/Materials | Evolved 1 slot: Propulsion x1 316 | -10/Materials | Build established: Hacker-Mutant 364 | -10/Materials | Identified exit to Materials 364 | -10/Materials | Discovered exit to Materials (range 16) 541 | -10/Materials | Identified exit to Mines 541 | -10/Materials | Discovered exit to Mines (range 13) 785 | -10/Materials | Discovered exit to Materials (range 14) 932 | -10/Materials | Core integrity fell below 50% 1171 | -10/Materials | Discovered exit to Materials (range 15) 1267 | -10/Materials | Repaired Imp. Hover Unit 1300 | -10/Materials | Repaired Imp. Hover Unit 1333 | -10/Materials | Repaired Imp. Hover Unit 1385 | -10/Materials | Entered Mines 1472 | -10/Mines | Discovered exit to Materials (range 14) 1597 | -10/Mines | Found a damaged Exp. Sensor Array with a note attached 1598 | -10/Mines | Found Prototype Device 1626 | -10/Mines | Received a Rocket Launcher from a helpful Derelict 1644 | -10/Mines | Discovered exit to Materials (range 5) 1646 | -10/Mines | Learned Materials terminal intel 1743 | -10/Mines | Deemed a non-threat by the Exiles lab entrance 1743 | -10/Mines | Identified exit to Exiles 1743 | -10/Mines | Discovered exit to Exiles (range 5) 1756 | -10/Mines | Learned location of Storage (-8) 1841 | -10/Mines | Identified exit to Subcaves 1841 | -10/Mines | Discovered exit to Subcaves (range 6) 1881 | -10/Mines | Entered Subcaves 1881 | -10/Subcaves | Accompanied by 2 allies 1936 | -10/Subcaves | A swath of the cavern ceiling suddenly collapsed 1952 | -10/Subcaves | Led the pair of lost Derelicts to an unsafe place 2015 | -10/Subcaves | Learned location of 2 exits from Materials 2061 | -10/Subcaves | Identified exit to Materials 2061 | -10/Subcaves | Discovered exit to Materials (range 14) 2103 | -10/Subcaves | Visited triangular shrine 2106 | -10/Subcaves | Found Prototype Device 2106 | -10/Subcaves | Identified V3-11A's Pendant 2111 | -10/Subcaves | Befriended Subdweller 2140 | -10/Subcaves | Discovered exit to Materials (range 15) 2151 | -10/Subcaves | Befriended Subdweller 2431 | -10/Subcaves | Shifting Twisted Machinery released Battle Rifle 3183 | -10/Subcaves | Disturbed a concealed Subdweller 3186 | -10/Subcaves | Befriended Subdweller 3307 | -10/Subcaves | Approached by friendly Subdweller 3325 | -10/Subcaves | Identified exit to Recycling 3325 | -10/Subcaves | Discovered exit to Recycling (range 8) 3344 | -10/Subcaves | Lost 3 allies 3352 | -10/Subcaves | Approached by friendly Subdweller 3445 | -10/Subcaves | Entered Recycling 3445 | -8/Recycling | Accompanied by 3 allies 3935 | -8/Recycling | Identified exit to Factory 3935 | -8/Recycling | Discovered exit to Factory (range 8) 3971 | -8/Recycling | Scanned before Scraplab entrance 3987 | -8/Recycling | Entered Scraplab 4109 | -8/Recycling | Core integrity fell below 20% 5245 | -8/Recycling | Identified exit to Scraptown 5245 | -8/Recycling | Discovered exit to Scraptown (range 2) 5284 | -8/Recycling | Entered Scraptown 5284 | -8/Scraptown | Accompanied by 3 allies 5284 | -8/Scraptown | System corruption cleaned by C-Scrubber 5314 | -8/Scraptown | Led the pair of lost Derelicts to a safe place 5511 | -8/Scraptown | Delivered V3-11A's Pendant to T0-NE2 in exchange for information 5795 | -8/Scraptown | Discovered exit to Factory (range 11) 5946 | -8/Scraptown | Scanned Subdweller tech in exchange for log data 5949 | -8/Scraptown | Learned Factory stockpile data 5951 | -8/Scraptown | Learned Research interactive machine intel 5953 | -8/Scraptown | Learned Research garrison access intel 6072 | -8/Scraptown | Visited SPCMW 6107 | -8/Scraptown | Visited The Evicted 6174 | -8/Scraptown | Visited Bundlers 6401 | -8/Scraptown | Visited Shadow of the Wyrm 6480 | -8/Scraptown | Visited Cave Peace 6494 | -8/Scraptown | Visited Comm Corps 6508 | -8/Scraptown | Visited Cyclists 7134 | -8/Scraptown | Entered Factory 7134 | -6/Factory | Accompanied by 1 ally 7134 | -6/Factory | Evolved 8 slots: Power x1, Propulsion x1, Utility x6 7141 | -6/Factory | Identified Exp. Sensor Array 7493 | -6/Factory | Spotted B-75 Beast 8101 | -6/Factory | Core integrity fell below 50% 8129 | -6/Factory | Core integrity fell below 20% 8133 | -6/Factory | Lost 8 parts (4n3u1w) 8334 | -6/Factory | Destroyed by H-66 Slayer with Gauss Rifle Last Messages --------------- Phase Shifter Hvy. Ion Cannon Terrain Scanner Gauss Rifle Wheel Corrupted Lgt. Treads Assault Cannon Imp. Heat Sink 08326_ Discarded Adv. Visual Processing Unit. 08331_ Slug penetrates G-50 Soldier. 08333_ System Shield destroyed. 08334_ Chain reaction triggered in Imp. Ion Engine. 08334_ Fusion Modulator explodes. 08334_ G-50 Soldier destroyed. 08334_ Recycling Unit disabled. 08334_ R-10 Processor destroyed. 08334_ G-50 Soldier destroyed. 08334_ Destroyed Hvy. Laser. 08334_ Penetrated by Slug. Map ----- +----------------------------------------------------+ | ?????????????????????????????? # #"""????????? | | ??????????????????????????????## #"""????????? | | ???????????????????????????????# #"""????????? | | ??????????????????????????###??# #?? ???????? | | ?????????????????????????? #??# #####??????## | | ??????????????????????????# #??# # | | ????????????????????"""???# #??# / | | ????????????????????"""???# #??# # """" "" | | ??????????????!?????"""???# #??# # """"??? | | ????????????????????????### #### #? """"??? | | ????????????????????"""?# #? """???? | | ????????????????????"""?# u #?? """???? | | ?????????????""?""??"""?# """ #??? """???? | | ?????????????"F?""??????# R" %#??? ???? | | ?????????????"""""??????# u """ #???? ??? | | ????????????????????????# R u #?????#?#???? | | ?????##############+##### [! ! ############? | | ??? u uu! | | ??? = |% ! A | | ??? % *k= """ """ " | | ??? ! gh% """ """ ? | | ???? =h g """ "???? | | ????####### #######; !g ;;;;###// ?? | | ??????????# ??????# ]%%* ; ##/! """?? | | ??????????# ????????# [[%/= ; ##/! """?? | | ??????????#??????????# @! ;#?# """?? | | ?????????????????????# ;#?# !/ ?? | | ?????????????????????# ;#?# / ? | | ?????????????????????# ;#?# #####+###? | | ?????????????????????# ;#?# #????????? | | ?????????????????????# ##?# #?""""???? | | ?????????????????????###########??? #?""F"???? | | ??????????????????????????????????? #?""?????? | | ??????????????????????????????????? #????????? | | ??????????????????????????????????? #??""""""" | | ??????????????????????????????????? #????????? | | ??????????????????????????????????? #??""""""" | | ???????????????????????????????????? ????????????? | | ???????????????????????????????????????????""""""" | | ?????????????????????????????????????????????????? | | ?????????????????????????????????????????????????? | | ?????????????????????????????????????????????????? | | ?????????????????????????????????????????????????? | | ?????????????????????????????????????????????????? | | ?????????????????????????????????????????????????? | | ?????????????????????????????????????????????????? | | ?????????????????????????????????????????????????? | | ?????????????????????????????????????????????????? | | ?????????????????????????????????????????????????? | | ?????????????????????????????????????????????????? | +----------------------------------------------------+ Best States ------------- Heat Dissipation 37 Energy Generation 31 Energy Capacity 310 Matter Stores 300 Matter Capacity 300 Sight Range 22 Robot Scan Range 20 Terrain Scan Density 10 Additional Mass Support 6 Resistance: KI 35 Resistance: TH 35 Resistance: EX 35 Resistance: EM 60 Resistance: I 35 Resistance: S 35 Resistance: P 35 Phase Shifting 5 Evasion (%) 74 Melee Accuracy 8 Target Analysis 9 Core Analysis 6 Offensive Hacking 32 Defensive Hacking 21 Authchip Count 2 Item Schematics ----------------- Cesium-ion Thruster | -8/Recycling | Hacked Powered Hammer | -8/Recycling | Hacked Enh. Flexi-carbon Leg | -6/Factory | Hacked Biomechanical Wings | -6/Factory | Hacked Variable Charge Gun | -6/Factory | Hacked Robot Schematics ------------------ None Fabricated ------------ Nothing Repaired ---------- Imp. Hover Unit | 8% | -10/Materials Imp. Hover Unit | 31% | -10/Materials Imp. Hover Unit | 57% | -10/Materials Studied --------- Xenon Bombardment Thruster | -6/Factory | Hacked VTOL Module | -6/Factory | Hacked Alien Tech Used ----------------- None Achievements -------------- None Challenges ------------ None Game ------ Seed MicroControlRecalibrator Manual? 0 Play Time 00:57:35 Cumulative 183.7 hours Start 2025.12.09 @ 15:53:06 End 2025.12.09 @ 16:49:50 Sessions 1 Manual Loads 0 Difficulty Explorer Special Mode None Game No. 261 Rogue 0 Adventurer 0 Explorer 261 Win Type - Total 0 Types 0/0/0/0/0/0/0/0/0/0 Lore% 70 Gallery% 67 Achievement% 53 Wizard Run 0 Options --------- Layout 1 ASCII 0 Keyboard 0 Movement Mouse Keybinds 0 Fullscreen 1 Font 24/Smallcaps Map View 50x35 Zoom Use 0% Tactical HUD 1 Map Filters NONE Filters NONE Steam 1 RUN: 2abc79e9-586e-4c9c-8109-66b87c3e8726